bitfinex-derivatives/quotes_SOLF0:USTF0_20250425
["timestamp","ask_amount","ask_price","bid_price","bid_amount"]
[1745568256756,6.4585,154.79,154.74,6.4599]
[1745568256955,8.8582013,154.83,154.73,8.8582013]
[1745568257351,6.4581,154.8,154.75,6.4597]
[1745568257557,8.8582013,154.83,154.73,12.7078013]
[1745568258059,6.4577,154.81,154.76,6.4594]
[1745568258460,23.6,154.8,154.73,8.8582013]
[1745568259156,6.4587,154.78,154.74,6.4601]
[1745568259460,6.4587,154.78,154.73,8.8582013]
[1745568260360,32.4582013,154.89,154.76,8.8582013]
[1745568260559,32.4582013,154.89,154.78,8.8582013]
[1745568260858,6.4572,154.82,154.78,38.9166013]
[1745568261462,6.4576,154.81,154.78,23.6]
[1745568261658,32.4582013,154.85,154.75,23.6]
[1745568261957,8.8582013,154.83,154.74,32.4582013]
[1745568262162,32.4582013,154.85,154.76,6.4592]
[1745568262658,6.4579,154.8,154.77,6.459]
[1745568263066,32.4582013,154.85,154.74,32.4582013]
[1745568263258,8.8582013,154.82,154.73,3.9152]
[1745568263460,23.6,154.81,154.73,3.9152]
[1745568263866,8.8582013,154.8,154.73,1.983]
[1745568264266,6.4595,154.76,154.71,1.8986]
[1745568264667,6.4595,154.76,154.72,6.461]
[1745568264868,8.8582013,154.78,154.7,465.24]
[1745568265063,23.6,154.77,154.69,27.3217]
[1745568265265,23.6,154.77,154.71,6.4616]
[1745568265462,23.6,154.77,154.69,23.6]
[1745568265662,8.8582013,154.76,154.69,23.6]
[1745568265969,6.4606,154.74,154.7,6.4617]
[1745568266166,8.8582013,154.76,154.69,23.6]
[1745568266563,6.4611,154.73,154.68,6.4625]
[1745568266766,8.8582013,154.76,154.67,23.6]
[1745568267263,23.6,154.77,154.67,23.6]
[1745568267264,23.6,154.77,154.67,32.4582013]
[1745568267466,1.12479395,154.86,154.74,8.8582013]
[1745568267658,12.9068,154.91,154.76,8.8582013]
[1745568267659,6.4571,154.82,154.76,8.8582013]
[1745568267857,6.4571,154.82,154.76,32.4582013]
[1745568268058,23.6,154.85,154.76,32.4582013]
[1745568268459,6.4568,154.83,154.78,6.4584]
[1745568268660,23.6,154.85,154.76,32.4582013]
[1745568269069,6.4568,154.83,154.79,6.458]
[1745568269269,23.6,154.85,154.79,6.458]
[1745568269469,23.6,154.91,154.8,23.6]
[1745568269670,32.4582013,154.9,154.82,6.4567]
[1745568270070,32.4582013,154.9,154.81,6.4572]
[1745568270269,32.4582013,154.9,154.8,23.6]
[1745568270672,6.4556,154.86,154.82,6.4567]
[1745568272674,6.4558,154.85,154.82,6.4567]
[1745568273374,23.6,154.9,154.82,6.4567]
[1745568275076,6.456,154.85,154.81,6.4572]
[1745568275375,23.6,154.9,154.81,6.4572]
[1745568275677,6.4565,154.84,154.8,6.4576]
[1745568275869,23.6,154.9,154.8,6.4576]
[1745568276475,23.6,154.9,154.79,10.2666]
[1745568276674,14.19341164,154.88,154.79,10.2666]
[1745568276876,6.4568,154.83,154.79,10.2666]
[1745568277076,6.4568,154.83,154.79,8.413]
[1745568277276,23.58,154.85,154.78,6.4585]
[1745568277575,6.4574,154.81,154.78,6.4585]
[1745568278074,6.4572,154.82,154.78,6.4585]
[1745568278280,23.58,154.85,154.77,23.58]
[1745568278778,23.58,154.85,154.78,6.4583]
[1745568278970,23.58,154.85,154.77,23.58]
[1745568279580,6.4577,154.81,154.78,6.4586]
[1745568279776,23.58,154.85,154.78,6.4586]
[1745568279978,6.4576,154.81,154.77,6.4588]
[1745568280583,6.4576,154.81,154.78,6.4584]
[1745568281185,6.4576,154.81,154.75,23.58]
[1745568282289,6.4576,154.81,154.78,6.4584]
[1745568282988,6.4576,154.81,154.79,6.4582]
[1745568283689,6.4576,154.81,154.72,1.8318]
[1745568283690,23.86,154.8,154.63,377.2165648]
[1745568283895,23.86,154.79,154.66,14.19341164]
[1745568284186,6.4602,154.75,154.7,6.4618]
[1745568284386,38.05341164,154.79,154.7,6.4618]
[1745568284786,38.05341164,154.79,154.71,6.4615]
[1745568284986,38.05341164,154.79,154.68,23.86]
[1745568285387,6.4595,154.76,154.72,6.4611]
[1745568287693,23.88,154.84,154.72,38.07341164]
[1745568287893,23.88,154.84,154.73,5.8732]
[1745568288095,6.4588,154.78,154.75,6.4597]
[1745568288893,38.07341164,154.84,154.74,6.4602]
[1745568289092,38.07341164,154.84,154.73,5.8732]
[1745568289288,38.07341164,154.84,154.73,1.9347]
[1745568289495,6.4601,154.75,154.73,1.9347]
[1745568289988,23.88,154.83,154.74,23.88]
[1745568290189,23.88,154.83,154.75,1.8303]
[1745568290388,23.88,154.83,154.76,6.4592]
[1745568290895,23.88,154.83,154.75,1.8303]
[1745568291498,6.4581,154.8,154.76,6.4594]
[1745568291696,23.88,154.83,154.75,1.8303]
[1745568292187,6.4585,154.79,154.75,8.29]
[1745568292501,23.88,154.83,154.74,25.8591]
[1745568292696,23.88,154.83,154.74,32.3194]
[1745568293099,6.4591,154.78,154.74,32.3194]
[1745568293295,8.87882793,154.82,154.74,32.3194]
[1745568293698,6.4589,154.78,154.74,32.3194]
[1745568294297,8.87882793,154.82,154.74,32.3194]
[1745568294798,8.87882793,154.82,154.75,6.4598]
[1745568295098,8.87882793,154.82,154.74,25.8591]
[1745568295099,6.4583,154.79,154.74,25.8591]
[1745568295397,23.88,154.83,154.74,34.73792793]
[1745568295597,23.88,154.83,154.76,8.87882793]
[1745568296096,23.88,154.83,154.78,6.4584]
[1745568296097,6.4576,154.81,154.78,6.4584]
[1745568298195,488.88,154.86,154.76,8.87882793]
[1745568298998,6.4571,154.82,154.79,6.4582]
[1745568299196,488.88,154.86,154.76,8.87882793]
[1745568299395,488.88,154.86,154.78,8.87882793]
[1745568299898,6.4564,154.84,154.78,8.87882793]
[1745568300597,6.4564,154.84,154.78,32.73882793]
[1745568301001,6.456,154.85,154.8,8.87882793]
[1745568301199,488.88,154.86,154.8,8.87882793]
[1745568301495,23.88,154.86,154.8,8.87882793]
[1745568301796,23.88,154.86,154.81,6.4572]
[1745568302697,6.4564,154.84,154.81,6.4572]
[1745568303198,6.4566,154.83,154.8,6.4577]
[1745568303498,6.4566,154.83,154.79,1.9725]
[1745568303798,6.4566,154.83,154.8,6.4575]
[1745568304097,6.4566,154.83,154.79,1.9725]
[1745568304298,6.4566,154.83,154.8,6.4576]
[1745568304496,6.4566,154.83,154.79,1.9725]
[1745568304797,23.88,154.86,154.79,1.9725]
[1745568304999,23.88,154.86,154.81,6.4574]
[1745568305198,6.4565,154.84,154.81,6.4574]
[1745568305701,6.4566,154.83,154.81,6.4574]
[1745568311305,6.4564,154.84,154.81,6.4574]
[1745568311507,23.88,154.86,154.81,6.4574]
[1745568312704,6.4566,154.84,154.81,6.4574]
[1745568312899,8.87882793,154.83,154.68,12.9255]
[1745568313102,8.87882793,154.83,154.73,3.7806]
[1745568313103,23.68,154.82,154.73,3.7806]
[1745568313405,6.4586,154.79,154.75,6.4598]
[1745568314106,6.4587,154.78,154.74,6.4601]
[1745568314302,8.87882793,154.81,154.73,3.7806]
[1745568314605,6.4602,154.75,154.73,3.7806]
[1745568314805,10.88362793,154.81,154.73,3.7806]
[1745568317010,10.88362793,154.81,154.73,1.8237]
[1745568317310,6.4602,154.75,154.73,1.8237]
[1745568317810,10.88362793,154.81,154.73,1.8237]
[1745568318112,10.88362793,154.81,154.71,25.6133]
[1745568318305,6.4602,154.75,154.72,6.4611]
[1745568318706,10.88362793,154.81,154.71,23.68]
[1745568319007,6.4606,154.74,154.71,30.1414]
[1745568319205,23.68,154.78,154.71,23.68]
[1745568319405,23.68,154.78,154.69,465.06]
[1745568319608,8.87882793,154.75,154.68,25.5755]
[1745568319808,23.68,154.74,154.68,1.8955]
[1745568320007,6.4621,154.7,154.68,1.8955]
[1745568320711,6.4624,154.69,154.68,1.8955]
[1745568320908,23.68,154.74,154.67,8.4579]
[1745568321102,8.87882793,154.73,154.66,6.4635]
[1745568321404,6.4629,154.68,154.65,23.68]
[1745568321703,6.4623,154.7,154.65,30.144]
[1745568321909,10.86712793,154.73,154.65,23.68]
[1745568322405,6.4624,154.7,154.66,6.4636]
[1745568322709,10.86712793,154.73,154.65,23.68]
[1745568322911,10.86712793,154.73,154.65,30.1438]
[1745568323205,8.87882793,154.71,154.61,16.32945565]
[1745568323407,6.4633,154.67,154.63,6.4646]
[1745568323712,6.4633,154.67,154.61,40.00945565]
[1745568324012,23.68,154.7,154.61,40.00945565]
[1745568324013,8.87882793,154.69,154.61,7.45062772]
[1745568324610,23.68,154.7,154.63,8.87882793]
[1745568325008,6.4627,154.69,154.63,8.87882793]
[1745568325510,6.4627,154.69,154.65,6.4639]
[1745568326109,6.4627,154.69,154.66,6.4637]
[1745568326613,30.1421,154.7,154.63,8.87882793]
[1745568326903,23.68,154.79,154.69,8.87882793]
[1745568327109,23.68,154.79,154.71,8.87882793]
[1745568327110,6.4593,154.77,154.71,8.87882793]
[1745568327610,6.4593,154.77,154.73,6.4605]
[1745568327811,6.4595,154.76,154.73,6.4605]
[1745568328012,25.5751,154.79,154.72,6.461]
[1745568328213,25.5751,154.79,154.69,32.55882793]
[1745568328413,6.4593,154.77,154.69,32.55882793]
[1745568329109,6.4595,154.76,154.73,6.4607]
[1745568329615,6.4592,154.77,154.74,6.4603]
[1745568329814,25.5751,154.79,154.71,8.87882793]
[1745568330011,25.5751,154.79,154.69,32.55882793]
[1745568330407,8.87882793,154.76,154.65,1.8378]
[1745568330713,8.87882793,154.74,154.65,8.87882793]
[1745568330910,6.4623,154.7,154.66,6.4635]
[1745568331215,25.6353,154.73,154.64,488.88]
[1745568331416,6.4625,154.69,154.65,6.4639]
[1745568331715,25.6353,154.73,154.65,6.4639]
[1745568332010,6.4631,154.68,154.64,495.3443]
[1745568332216,25.6353,154.73,154.64,23.68]
[1745568332413,25.6353,154.73,154.66,6.4636]
[1745568332711,8.87882793,154.72,154.64,23.68]
[1745568332917,8.87882793,154.72,154.63,6.4648]
[1745568333218,3.8383,154.71,154.63,6.4648]
[1745568333516,6.4637,154.66,154.63,6.4648]
[1745568333716,23.68,154.69,154.62,8.3478]
[1745568333917,23.68,154.69,154.62,6.4652]
[1745568334218,6.4644,154.65,154.62,6.4652]
[1745568334415,23.68,154.69,154.62,6.4652]
[1745568335215,23.68,154.69,154.63,6.4649]
[1745568336115,488.92,154.75,154.67,8.87882793]
[1745568337020,488.92,154.75,154.66,6.4636]
[1745568337512,6.4623,154.7,154.66,6.4636]
[1745568338114,488.92,154.75,154.66,6.4636]
[1745568338310,497.79882793,154.75,154.66,6.4636]
[1745568338617,6.4626,154.69,154.66,6.4636]
[1745568339115,6.4626,154.69,154.65,39.04272793]
[1745568339310,23.7,154.71,154.65,8.87882793]
[1745568339515,32.57882793,154.71,154.62,23.7]
[1745568339715,32.57882793,154.71,154.62,30.1652]
[1745568339916,6.464,154.66,154.6,32.57882793]
[1745568340417,32.57882793,154.71,154.6,32.57882793]
[1745568340715,32.57882793,154.71,154.62,8.87882793]
[1745568340914,32.57882793,154.71,154.63,6.4646]
[1745568341217,32.57882793,154.71,154.62,8.87882793]
[1745568341417,23.7,154.71,154.61,14.22441951]
[1745568341612,6.4631,154.68,154.64,6.4645]
[1745568341816,23.7,154.71,154.61,14.22441951]
[1745568342720,23.7,154.71,154.64,6.4642]
[1745568342721,6.4635,154.67,154.64,6.4642]
[1745568344224,6.4637,154.66,154.64,6.4642]
[1745568345324,23.7,154.71,154.62,6.4651]
[1745568345625,5.6407,154.7,154.57,14.22441951]
[1745568345816,5.6407,154.7,154.58,5.8559]
[1745568346021,5.6407,154.7,154.58,29.7159]
[1745568346324,14.22441951,154.65,154.53,21.67504723]
[1745568346518,38.08441951,154.65,154.54,23.86]
[1745568346716,1.9371,154.64,154.53,11.45902772]
[1745568346914,6.4677,154.57,154.53,17.92802772]
[1745568347428,6.4677,154.57,154.53,10.4774]
[1745568347920,23.86,154.61,154.53,10.4774]
[1745568348129,23.86,154.61,154.54,6.4686]
[1745568348528,6.4676,154.57,154.54,6.4686]
[1745568348726,23.86,154.61,154.53,6.4688]
[1745568349125,6.4682,154.56,154.53,6.4688]
[1745568349331,23.86,154.61,154.53,6.4689]
[1745568349628,6.4683,154.55,154.53,6.4689]
[1745568349828,23.86,154.61,154.53,6.4689]
[1745568350329,23.86,154.61,154.52,30.3294]
[1745568350527,23.86,154.61,154.52,23.86]
[1745568350927,23.86,154.61,154.51,6.4697]
[1745568351124,14.22441951,154.59,154.49,31.31062772]
[1745568351323,16.10471951,154.58,154.46,14.22441951]
[1745568351526,23.86,154.57,154.47,3.8907]
[1745568351727,23.86,154.57,154.47,5.7444]
[1745568351927,23.86,154.57,154.49,14.22441951]
[1745568352227,23.86,154.57,154.5,23.86]
[1745568352424,6.4683,154.55,154.5,30.3301]
[1745568352628,6.4683,154.55,154.5,23.86]
[1745568353032,6.4683,154.55,154.51,6.4697]
[1745568354230,23.86,154.57,154.48,23.86]
[1745568354734,6.4681,154.56,154.52,6.4692]
[1745568354925,23.86,154.57,154.48,23.86]
[1745568355129,6.4686,154.55,154.48,23.86]
[1745568355833,6.4686,154.55,154.52,6.4695]
[1745568357233,6.4681,154.56,154.49,1.983]
[1745568357436,23.86,154.57,154.49,16.20741951]
[1745568357736,6.4677,154.57,154.49,16.20741951]
[1745568358336,6.468,154.56,154.52,6.4694]
[1745568358836,6.468,154.56,154.49,16.20741951]
[1745568359037,6.468,154.56,154.53,6.4689]
[1745568359839,6.4676,154.57,154.54,6.4686]
[1745568360337,6.4669,154.59,154.56,6.4678]
[1745568360542,23.86,154.6,154.45,12.9445]
[1745568360543,23.86,154.6,154.45,367.9445]
[1745568360743,23.86,154.6,154.48,38.08441951]
[1745568361745,6.4685,154.55,154.52,6.4693]
[1745568362044,23.86,154.6,154.48,38.08441951]
[1745568362346,23.86,154.6,154.51,6.4697]
[1745568362848,14.22441951,154.58,154.48,23.86]
[1745568363243,7.91976675,154.55,154.48,23.86]
[1745568363450,6.4703,154.51,154.48,30.331]
[1745568364141,6.4703,154.51,154.46,1.9132]
[1745568364344,6.4708,154.49,154.46,32.2451]
[1745568364948,6.4708,154.49,154.46,8.3851]
[1745568365348,6.4708,154.49,154.46,1.9132]
[1745568365646,6.4712,154.48,154.45,6.4723]
[1745568365846,7.91976675,154.53,154.44,16.27416675]
[1745568366147,6.4715,154.48,154.44,9.80146675]
[1745568366349,6.4715,154.48,154.45,6.4722]
[1745568366642,23.88,154.51,154.44,1.8817]
[1745568367047,23.88,154.51,154.45,6.4724]
[1745568367346,31.79976675,154.51,154.43,23.88]
[1745568367542,31.79976675,154.51,154.44,6.4725]
[1745568367738,31.79976675,154.51,154.43,23.88]
[1745568367941,6.4715,154.48,154.43,23.88]
[1745568368139,6.4715,154.48,154.45,6.4722]
[1745568368341,6.4715,154.48,154.43,31.79976675]
[1745568368545,23.88,154.51,154.43,31.79976675]
[1745568369047,6.4705,154.5,154.43,31.79976675]
[1745568369248,6.4705,154.5,154.47,6.4714]
[1745568369442,23.88,154.51,154.43,23.88]
[1745568369647,6.4717,154.47,154.43,23.88]
[1745568369848,6.4717,154.47,154.44,6.4728]
[1745568370147,6.4722,154.46,154.43,23.88]
[1745568370347,31.79976675,154.51,154.43,23.88]
[1745568370543,31.79976675,154.51,154.42,6.4735]
[1745568370748,6.4727,154.45,154.42,6.4735]
[1745568371651,6.4727,154.45,154.43,6.4732]
[1745568371946,6.4727,154.45,154.4,378.88]
[1745568372146,31.79976675,154.51,154.44,6.4726]
[1745568372446,31.79976675,154.51,154.41,7.91976675]
[1745568372647,31.79976675,154.51,154.42,6.4735]
[1745568372848,31.79976675,154.51,154.41,7.91976675]
[1745568373346,31.79976675,154.51,154.42,6.4735]
[1745568373547,7.91976675,154.49,154.4,23.88]
[1745568373747,6.4731,154.44,154.41,6.4739]
[1745568373941,7.91976675,154.49,154.4,23.88]
[1745568374141,31.79976675,154.51,154.41,7.91976675]
[1745568374340,31.79976675,154.51,154.43,6.4731]
[1745568374949,6.4724,154.46,154.43,6.4731]
[1745568375150,31.79976675,154.51,154.43,6.4731]
[1745568375351,6.4723,154.46,154.44,6.4728]
[1745568375649,23.88,154.51,154.43,7.91976675]
[1745568375851,6.471,154.49,154.43,7.91976675]
[1745568376043,6.471,154.49,154.46,6.4718]
[1745568376949,23.88,154.51,154.44,3.944]
[1745568377151,31.79976675,154.51,154.44,1.9531]
[1745568377446,6.4725,154.45,154.42,6.4734]
[1745568377651,7.91976675,154.49,154.4,23.88]
[1745568377853,3.6907,154.48,154.4,31.79976675]
[1745568378054,6.4731,154.44,154.41,6.4739]
[1745568378246,3.6907,154.48,154.41,6.4739]
[1745568378553,6.4733,154.44,154.41,6.4739]
[1745568378751,24.32,154.47,154.4,38.27416675]
[1745568378947,24.32,154.47,154.38,7.91976675]
[1745568379350,32.23976675,154.47,154.38,14.39506675]
[1745568379658,32.23976675,154.47,154.38,7.91976675]
[1745568379856,32.23976675,154.47,154.39,6.4748]
[1745568380158,6.474,154.42,154.39,6.4748]
[1745568380557,6.474,154.42,154.4,6.4745]
[1745568380753,6.474,154.42,154.38,7.91976675]
[1745568380950,6.4735,154.43,154.38,7.91976675]
[1745568381158,6.4735,154.43,154.4,6.4745]
[1745568381558,6.4738,154.42,154.4,6.4745]
[1745568382060,6.4738,154.42,154.38,7.91976675]
[1745568382258,32.23976675,154.47,154.38,7.91976675]
[1745568382558,32.23976675,154.47,154.39,6.4748]
[1745568382857,32.23976675,154.47,154.38,7.91976675]
[1745568383161,32.23976675,154.47,154.4,6.4746]
[1745568383357,6.4739,154.42,154.4,6.4746]
[1745568383753,32.23976675,154.47,154.4,6.4746]
[1745568384260,6.474,154.42,154.39,6.4748]
[1745568384458,6.474,154.42,154.38,7.91976675]
[1745568384658,6.474,154.42,154.39,6.4749]
[1745568384960,6.474,154.42,154.38,7.91976675]
[1745568385355,6.474,154.42,154.39,6.4747]
[1745568385559,6.4743,154.41,154.39,6.4747]
[1745568385858,32.23976675,154.47,154.38,14.39496675]
[1745568386062,32.23976675,154.47,154.38,7.91976675]
[1745568386559,32.23976675,154.47,154.38,14.39486675]
[1745568386859,6.4744,154.41,154.38,14.39486675]
[1745568387960,32.23976675,154.47,154.38,14.39486675]
[1745568388563,6.4744,154.41,154.38,14.39486675]
[1745568388865,6.4744,154.41,154.39,6.475]
[1745568389160,32.23976675,154.47,154.4,6.4746]
[1745568389558,32.23976675,154.47,154.38,7.91976675]
[1745568389863,32.23976675,154.47,154.39,6.4748]
[1745568390463,32.23976675,154.47,154.38,14.39496675]
[1745568390760,12.9443,154.46,154.37,24.32]
[1745568390961,6.4746,154.4,154.37,24.32]
[1745568391163,6.4746,154.4,154.36,11.86376675]
[1745568391458,6.4751,154.39,154.37,6.4756]
[1745568392060,6.4751,154.39,154.36,18.33986675]
[1745568392361,6.4754,154.38,154.36,18.33986675]
[1745568392863,6.4751,154.39,154.37,6.4756]
[1745568393064,6.4751,154.39,154.36,11.86376675]
[1745568393465,6.4755,154.38,154.36,18.33986675]
[1745568393667,24.32,154.43,154.36,18.33986675]
[1745568394062,6.4752,154.39,154.36,18.33986675]
[1745568394568,6.4752,154.39,154.37,6.4758]
[1745568394865,6.4747,154.4,154.36,11.86376675]
[1745568395062,6.4747,154.4,154.37,6.4755]
[1745568395366,6.4747,154.4,154.39,5.07491595]
[1745568396061,24.32,154.43,154.39,5.07491595]
[1745568396364,24.32,154.43,154.39,11.54971595]
[1745568396565,6.474,154.42,154.41,5.07491595]
[1745568397266,6.474,154.42,154.39,14.40192962]
[1745568398168,6.474,154.42,154.4,6.4746]
[1745568401072,30.7935,154.43,154.4,6.4746]
[1745568401976,24.32,154.43,154.39,7.92722962]
[1745568402172,24.32,154.46,154.39,7.92722962]
[1745568402569,6.4733,154.44,154.41,6.474]
[1745568402872,24.32,154.46,154.39,7.92722962]
[1745568403074,24.32,154.46,154.38,24.32]
[1745568403272,6.4739,154.42,154.39,6.4746]
[1745568403674,6.4739,154.42,154.38,24.32]
[1745568403876,6.4739,154.42,154.4,6.4743]
[1745568404776,6.4736,154.43,154.41,6.4741]
[1745568405376,6.4737,154.42,154.4,6.4744]
[1745568405777,3.6907,154.48,154.41,7.92722962]
[1745568405974,6.4729,154.44,154.42,6.4735]
[1745568406777,6.4727,154.45,154.42,6.4735]
[1745568407279,6.4729,154.44,154.42,6.4735]
[1745568407681,23.96,154.47,154.42,6.4735]
[1745568407980,6.4726,154.45,154.43,6.4732]
[1745568408182,6.4726,154.45,154.4,7.92722962]
[1745568408681,6.4726,154.45,154.42,6.4733]
[1745568408980,23.96,154.47,154.4,7.92722962]
[1745568409375,1.8313,154.48,154.4,7.92722962]
[1745568409584,23.94,154.5,154.44,7.92722962]
[1745568409779,23.94,154.5,154.45,6.4721]
[1745568410081,6.4714,154.48,154.44,7.92722962]
[1745568410481,6.4714,154.48,154.45,6.4724]
[1745568410682,6.4714,154.48,154.44,7.92722962]
[1745568411484,23.94,154.5,154.44,7.92722962]
[1745568411485,6.471,154.49,154.44,7.92722962]
[1745568411986,6.471,154.49,154.47,6.4713]
[1745568414589,6.4706,154.5,154.48,6.4712]
[1745568415082,6.4701,154.51,154.49,6.4708]
[1745568415383,1.9989,154.57,154.48,7.92722962]
[1745568415687,6.4695,154.52,154.5,6.4702]
[1745568415989,23.94,154.56,154.48,7.92722962]
[1745568416283,491.9136,154.59,154.5,7.92722962]
[1745568416487,491.9136,154.59,154.5,31.86722962]
[1745568416689,23.94,154.61,154.52,7.92722962]
[1745568416885,23.94,154.61,154.54,7.92722962]
[1745568417288,23.94,154.61,154.54,31.86722962]
[1745568417587,23.94,154.61,154.56,7.92722962]
[1745568417780,6.4664,154.6,154.57,6.4671]
[1745568417981,6.4664,154.6,154.56,7.92722962]
[1745568418287,6.4664,154.6,154.56,14.39482962]
[1745568418488,6.4667,154.59,154.56,14.39482962]
[1745568419295,6.467,154.58,154.56,7.92722962]
[1745568419586,23.94,154.61,154.56,7.92722962]
[1745568420494,6.467,154.58,154.56,7.92722962]
[1745568420790,3.8963,154.63,154.56,7.92722962]
[1745568420986,6.4668,154.59,154.56,14.39482962]
[1745568421291,1.9989,154.63,154.56,7.92722962]
[1745568421491,7.92722962,154.62,154.54,31.86722962]
[1745568421695,7.92722962,154.62,154.51,3.7632]
[1745568421696,7.92722962,154.58,154.51,1.822]
[1745568421889,31.86722962,154.58,154.51,1.822]
[1745568422089,31.86722962,154.58,154.5,6.4701]
[1745568422389,6.4695,154.53,154.5,6.4701]
[1745568423192,6.4689,154.54,154.5,6.4701]
[1745568423392,6.4689,154.54,154.51,5.06687099]
[1745568423595,6.4689,154.54,154.51,11.53687099]
[1745568424495,6.4685,154.55,154.52,6.4694]
[1745568424698,6.4685,154.55,154.53,5.06687099]
[1745568425297,6.4685,154.55,154.52,6.4694]
[1745568425595,6.4688,154.54,154.51,6.4698]
[1745568427201,6.4692,154.53,154.5,15.37431872]
[1745568427497,6.4692,154.53,154.5,8.90411872]
[1745568428997,6.4689,154.54,154.51,6.4697]
[1745568429402,23.94,154.58,154.5,8.90411872]
[1745568430002,6.4685,154.55,154.52,6.4693]
[1745568430196,23.94,154.58,154.52,6.4693]
[1745568430403,23.94,154.58,154.5,8.90411872]
[1745568430700,6.4687,154.55,154.5,8.90411872]
[1745568431097,6.4687,154.54,154.52,6.4694]
[1745568431603,32.84411872,154.58,154.5,6.4702]
[1745568432101,32.84411872,154.58,154.49,30.4106]
[1745568432492,32.84411872,154.58,154.49,23.94]
[1745568432799,6.4694,154.53,154.5,6.4702]
[1745568433005,32.84411872,154.58,154.49,23.94]
[1745568433503,23.94,154.58,154.5,8.90411872]
[1745568434103,6.4682,154.56,154.53,6.4689]
[1745568435102,6.4683,154.55,154.53,6.4689]
[1745568436104,6.4687,154.54,154.5,8.90411872]
[1745568436300,8.90411872,154.56,154.49,23.94]
[1745568436499,8.90411872,154.54,154.46,23.66]
[1745568436806,6.4714,154.48,154.46,23.66]
[1745568437000,6.4714,154.48,154.45,1.8508]
[1745568437200,6.4717,154.47,154.44,6.4727]
[1745568438505,6.4722,154.46,154.43,30.133]
[1745568438803,32.56411872,154.5,154.43,23.66]
[1745568439198,8.90411872,154.48,154.4,25.5629]
[1745568439708,5.7423,154.49,154.4,34.46701872]
[1745568440306,6.4733,154.43,154.4,40.94141872]
[1745568440506,5.7423,154.49,154.4,34.46701872]
[1745568440908,6.4722,154.46,154.43,6.4732]
[1745568441505,23.66,154.5,154.44,32.56411872]
[1745568441902,6.4712,154.48,154.45,6.4722]
[1745568442105,23.66,154.5,154.44,32.56411872]
[1745568442502,6.4703,154.51,154.44,32.56411872]
[1745568443008,6.4703,154.51,154.48,6.4711]
[1745568443306,6.4705,154.5,154.48,6.4711]
[1745568443708,6.4705,154.5,154.47,6.4714]
[1745568444308,6.4708,154.49,154.47,6.4714]
[1745568444607,23.66,154.53,154.46,8.90411872]
[1745568444803,6.47,154.51,154.46,8.90411872]
[1745568445104,23.66,154.53,154.46,8.90411872]
[1745568445304,6.4696,154.52,154.46,8.90411872]
[1745568445807,6.4696,154.52,154.49,6.4706]
[1745568446510,6.4696,154.52,154.46,8.90411872]
[1745568446714,30.1293,154.53,154.46,8.90411872]
[1745568447114,23.66,154.53,154.46,8.90411872]
[1745568447309,6.4697,154.52,154.46,8.90411872]
[1745568447807,6.4697,154.52,154.49,6.4705]
[1745568448512,6.4697,154.52,154.5,6.4703]
[1745568448810,38.18421872,154.56,154.48,32.56411872]
[1745568448811,29.2801,154.56,154.48,32.56411872]
[1745568449009,23.66,154.56,154.5,8.90411872]
[1745568449411,23.66,154.59,154.55,6.468]
[1745568449711,1.834,154.61,154.54,8.90411872]
[1745568449912,6.4671,154.58,154.54,8.90411872]
[1745568450214,6.4671,154.58,154.55,6.4681]
[1745568450715,10.73811872,154.61,154.53,23.66]
[1745568451120,10.73811872,154.61,154.5,32.56411872]
[1745568451408,8.90411872,154.59,154.5,32.56411872]
[1745568451615,23.66,154.58,154.5,23.66]